Cogmind - Beta 11.1 @@@ ROGUE MODE // 2022.05.26 @ 14:00:21 Player: Jamuson Result: Self-destructed Performance ------------- Evolutions (3) 1500 Regions Visited (6) 1200 Robots Destroyed (160) 800 Value Destroyed (5309) 5309 Prototype IDs (31) 620 Alien Tech Used (0) 0 Bonus (1396) 1396 TOTAL SCORE: 10825 Bonus ------- High Alert Combat Kills 1226 Aligned with FarCom 300 Friendly Fire -130 Cogmind --------- Core Integrity 277/700 Matter 190/300 Energy 89/100 System Corruption 0% Temperature Cool (0) Movement Rolling (130) Ox2 Location -7/Factory Parts ------- > --- POWER (1) -------- (None) > --- PROPULSION (3) --- Compact Wheel > --- UTILITY (5) ------ Improved Cooling System High-capacity Storage Unit > --- WEAPON (4) ------- (None) > --- INVENTORY (20) --- Improved Deuterium Engine Improved Cooling System Large Storage Unit Core Analyzer Armor Integrity Analyzer Hardened Heavy Armor Plating System Restoration Module AWS/Thermal Improved EM Pulse Cannon Improved EM Pulse Cannon Improved EM Pulse Cannon Heavy Ion Cannon Gauss Rifle Precision Assault Rifle Proton Missile Launcher Heavy Missile Launcher Powered Hammer Peak State ------------ > --- POWER ------------ Enhanced Nuclear Core > --- PROPULSION ------- Advanced Treads Advanced Treads Medium Treads > --- UTILITY ---------- Improved Cooling System Large Storage Unit Improved Targeting Computer Improved Medium Armor Plating System Restoration Module > --- WEAPON ----------- Beam Rifle Heavy Ion Cannon Gauss Rifle Gauss Rifle > --- INVENTORY -------- Improved Deuterium Engine Armor Integrity Analyzer Hardened Medium Armor Plating Hardened Medium Armor Plating Hardened Heavy Armor Plating Heavy EM Pulse Gun AWS/Thermal Improved EM Pulse Cannon Flak Gun Mini Grenade Launcher Heavy Mace [Rating: 49] Favorites ----------- Power Improved Deuterium Engine Engine Improved Deuterium Engine Power Core Nuclear Core Propulsion Advanced Treads Treads Advanced Treads Leg Carbon-fiber Leg Wheel Wheel Utility Large Storage Unit Device Improved Cooling System Storage Large Storage Unit Processor Improved Targeting Computer Protection Hardened Medium Armor Plating Weapon Gauss Rifle Energy Gun Beam Rifle Energy Cannon Heavy Ion Cannon Ballistic Gun Gauss Rifle Launcher Mini Grenade Launcher Impact Weapon Heavy Mace Slashing Weapon Mining Claw Build | -11 -10 -10 -10 -9 -8 -7 ------- Run | Scr Mat Min Exi Min Mat Fac Slots Evolved 6 | . . . . . 4 2 Power . | . . . . . . . Propulsion 1 | . . . . . 1 . Utility 3 | . . . . . 2 1 Weapon 2 | . . . . . 1 1 Parts Attached 151 | 2 14 1 . . 58 76 Power 13 | . 3 . . . 4 6 Engine 9 | . 3 . . . 1 5 Core 4 | . . . . . 3 1 Reactor . | . . . . . . . Propulsion 32 | 2 3 . . . 15 12 Treads 8 | . 2 . . . 1 5 Leg 15 | . . . . . 14 1 Wheel 9 | 2 1 . . . . 6 Hover . | . . . . . . . Flight . | . . . . . . . Utility 37 | . 1 . . . 15 21 Device 16 | . . . . . 7 9 Storage 4 | . 1 . . . 2 1 Processor 1 | . . . . . 1 . Hackware . | . . . . . . . Protection 16 | . . . . . 5 11 Artifact . | . . . . . . . Weapon 69 | . 7 1 . . 24 37 Energy Gun 13 | . . . . . 7 6 Energy Cannon 8 | . 1 . . . 3 4 Ballistic Gun 36 | . 6 . . . 11 19 Ballistic Cannon . | . . . . . . . Launcher 4 | . . 1 . . . 3 Special Weapon . | . . . . . . . Impact Weapon 7 | . . . . . 2 5 Slashing Weapon 1 | . . . . . 1 . Piercing Weapon . | . . . . . . . Special Melee Weapon . | . . . . . . . Unidentified Prototypes 8 | . 1 . . . 2 5 Parts Lost 52 | . 2 . . . 26 24 Power 5 | . . . . . 4 1 Propulsion 18 | . 2 . . . 9 7 Utility 12 | . . . . . 5 7 Weapon 17 | . . . . . 8 9 Highest Loss Streak 10 | . 1 . . . 5 10 To Critical Strikes 1 | . . . . . . 1 Average Slot Usage (%) 91 | . 80 85 85 85 87 96 Engine 6 | . 13 14 14 14 3 6 Core 1 | . . . . . 4 . Treads 13 | . 10 28 28 28 1 16 Leg 7 | . . . . . 22 2 Wheel 2 | . 13 . . . . 2 Device 7 | . . . . . 10 9 Storage 9 | . 14 14 14 14 9 7 Processor 3 | . . . . . 5 4 Protection 7 | . . . . . 5 12 Energy Gun 5 | . . . . . 7 5 Energy Cannon 4 | . . . . . 4 5 Ballistic Gun 16 | . 27 15 14 14 13 17 Launcher 1 | . . 12 14 14 . . Naked Turns . | . . . . . . . Heaviest Build 87 | 11 31 31 29 29 45 87 Greatest Support 72 | 26 40 40 40 40 50 72 Greatest Overweight (x) 8 | . . . . . 1 8 Average Overweight (x) . | . . . . . . 1 Largest Inventory Capacity 20 | 8 15 15 15 15 15 20 Average Capacity 15 | 8 9 15 15 15 15 17 Most Carried 20 | 6 8 5 7 7 15 20 Average Carried 12 | 6 5 5 5 7 9 16 Final Capacity 20 | 8 15 15 15 15 15 20 Final Carried 19 | 6 5 5 7 7 15 19 Class Distribution -------------------- 24% | Mutant 22% | Skirmisher 16% | Scavenger-Skirmisher 16% | Scavenger-Tank 12% | Scavenger-Mutant 7% | Tank Dominant Class ---------------- Mutant | -10/Materials Mutant | -10/Mines Mutant | -10/Exiles Mutant | -9/Mines Scavenger-Skirmisher | -8/Materials Scavenger-Tank | -7/Factory Resources | -11 -10 -10 -10 -9 -8 -7 ----------- Run | Scr Mat Min Exi Min Mat Fac Matter Collected 4862 | 200 361 262 . 10 1774 2255 Remotely . | . . . . . . . Salvage Created 7285 | . 658 73 . 20 2535 3999 Parts 346 | . 44 5 . 5 113 179 Haulers Intercepted 9 | . 2 . . . 4 3 Recyclers Shooed 5 | . . . . . . 5 Parts Field Recycled . | . . . . . . . Retrieved Matter . | . . . . . . . Parts Self-Destructed . | . . . . . . . Prevented . | . . . . . . . Kills | -11 -10 -10 -10 -9 -8 -7 ------- Run | Scr Mat Min Exi Min Mat Fac Combat Hostiles Destroyed 138 | . 15 12 . 3 44 64 Melee 1 | . . . . . . 1 Guns 91 | . 15 . . . 37 39 Cannons 14 | . . . . . 4 10 AOE 29 | . . 12 . 3 2 12 Classes Destroyed 16 | . 5 1 . . 6 4 Worker 7 | . 1 . . . 1 5 Builder 8 | . . . . . . 8 Hauler 9 | . 2 . . . 4 3 Recycler 10 | . . . . . 1 9 Mechanic 1 | . . . . . . 1 Operator 1 | . . . . . . 1 Watcher 11 | . 2 . . . 5 4 Swarmer 21 | . 6 3 . 3 1 8 Grunt 75 | . 9 2 . . 31 33 Brawler 4 | . . . . . 2 2 Duelist 5 | . . . . . 1 4 Sentry 11 | . . . . . 5 6 Specialist 2 | . . . . . 2 . Hunter 5 | . . . . . 2 3 Programmer 8 | . . . . . . 8 Assembled 7 | . . 7 . . . . Best Kill Streak 16 | . 6 7 . 3 5 16 Combat Bots Only 12 | . 3 7 . 3 4 12 Max Kills in Single Turn 4 | . 1 2 . 3 2 4 Gunslinging 1 | . . . . . . 1 Exploded 3 | . . 2 . 3 1 2 Melee 1 | . . . . . . 1 Uniques/NPCs Destroyed . | . . . . . . . Combat | -11 -10 -10 -10 -9 -8 -7 -------- Run | Scr Mat Min Exi Min Mat Fac Damage Taken 8345 | . 499 178 . . 3112 4556 Core 991 | . 103 37 . . 428 423 Absorbed by Shields . | . . . . . . . Regen/Repaired (Parts) 9 | . . . . . 9 . Core Remaining (%) 55 | 100 . . . 44 22 . Volleys Fired 387 | . 57 16 . 1 151 162 Largest 4 | . 2 2 . 1 3 4 Hottest 235 | . 46 53 . 30 176 235 Shots Fired 1081 | . 114 18 . 1 416 532 Gun 940 | . 114 3 . . 386 437 Cannon 113 | . . . . . 30 83 Launcher 28 | . . 15 . 1 . 12 Special . | . . . . . . . Kinetic 793 | . 114 3 . . 315 361 Thermal 193 | . . . . . 75 118 Explosive 23 | . . 15 . 1 . 7 Electromagnetic 72 | . . . . . 26 46 Robot Hit Streak 15 | . 13 14 . . 15 13 Robot Miss Streak 8 | . 3 3 . 3 7 8 Penetration Max 1 | . . . . . . 1 Secondary Targets 12 | . . . . . 6 6 Max Gunslinging Chain 1 | . . . . . 1 1 Shots Hit Robots 745 | . 72 9 . . 295 369 Core Hits 483 | . 30 22 . 3 147 281 Critical Kills 3 | . 1 . . . 1 1 Critical Parts Destroyed 7 | . . . . . 1 6 Critical Strikes 12 | . 1 . . . 2 9 Burn 2 | . . . . . . 2 Destroy 7 | . 1 . . . 2 4 Smash 3 | . . . . . . 3 Melee Attacks 30 | . . . . . 7 23 Impact 29 | . . . . . 6 23 Slashing 1 | . . . . . 1 . Piercing . | . . . . . . . Sneak Attacks . | . . . . . . . Combat Hostiles . | . . . . . . . Follow-up Attacks . | . . . . . . . Damage Inflicted 17441 | . 992 849 . 162 5198 10240 Guns 11536 | . 992 18 . . 4467 6059 Cannons 1781 | . . . . . 351 1430 Explosions 3670 | . . 831 . 162 223 2454 Melee 387 | . . . . . 110 277 Ramming 67 | . . . . . 47 20 Kinetic 9505 | . 992 18 . . 3444 5051 Thermal 3832 | . . . . . 1118 2714 Explosive 2267 | . . 831 . 162 100 1174 Electromagnetic 1383 | . . . . . 379 1004 Impact 387 | . . . . . 110 277 Slashing . | . . . . . . . Piercing . | . . . . . . . Highest Corruption 4 | . . . . . . 4 Average Corruption 1 | . . . . . . 1 Corruption Purged 12 | . . . . . . 12 Corruption Blocked . | . . . . . . . Effects 23 | . . . . . . 23 Message Errors 5 | . . . . . . 5 Matter Fused 5 | . . . . . . 5 Heat Flow Errors 1 | . . . . . . 1 Energy Discharges 6 | . . . . . . 6 Data Loss (minor) 3 | . . . . . . 3 Data Loss (major) 1 | . . . . . . 1 Misfires 1 | . . . . . . 1 Alerts 1 | . . . . . . 1 Overload Shots . | . . . . . . . Overflow Damage 385 | . . 43 . . 25 317 Projectiles 47 | . . . . . . 47 Explosions 236 | . . 43 . . 3 190 Melee 102 | . . . . . 22 80 Knockbacks 3 | . . . . . . 3 Impact 3 | . . . . . . 3 Kinetic . | . . . . . . . Secondary . | . . . . . . . Self-Inflicted Damage 220 | . . . . . 47 173 Shots 6 | . . . . . 1 5 Rammed 1 | . . . . . . 1 Targets Rammed 9 | . . . . . 7 2 Kicked 8 | . . . . . 7 1 Crushed . | . . . . . . . Highest Temperature 462 | . 6 15 . . 462 282 Average Temperature 65 | . 2 9 . . 80 56 Received Heat Transfer 2958 | . 201 24 . . 1260 1473 Effects 6 | . . . . . 4 2 Interference 4 | . . . . . 2 2 Matter Decay 2 | . . . . . 2 . Siege Activations . | . . . . . . . Robots Corrupted . | . . . . . . . Combat Hostiles . | . . . . . . . Parts Fried 7 | . . . . . 3 4 Impact Corruptions 5 | . . . . . 1 4 Robots Melted . | . . . . . . . Combat Hostiles . | . . . . . . . Parts Melted 9 | . . . . . . 9 Heat Transferred 5492 | . . . . . 1598 3894 Parts Sabotaged . | . . . . . . . Parts Stolen . | . . . . . . . Parts Stripped . | . . . . . . . Power Chain Reactions 5 | . . . . . 1 4 Missiles Intercepted . | . . . . . . . Alert | -11 -10 -10 -10 -9 -8 -7 ------- Run | Scr Mat Min Exi Min Mat Fac Peak Influence 1593 | . 285 210 . 106 678 1593 Initial 288 | . . 30 . . 40 288 Average 396 | . 145 109 . 106 389 492 Maximum Alert Level 4 | . 1 1 . . 2 4 Low Security (%) 41 | 100 60 96 . 100 23 36 Level 1 11 | . 39 3 . . 21 4 Level 2 33 | . . . . . 55 34 Level 3 8 | . . . . . . 15 Level 4 5 | . . . . . . 9 Level 5 . | . . . . . . . High Security . | . . . . . . . Max Security . | . . . . . . . Squads Dispatched 49 | . 4 . . . 13 32 Investigation 6 | . 2 . . . 3 1 Extermination 8 | . . . . . . 8 Reinforcement 18 | . 2 . . . 7 9 Assault 5 | . . . . . . 5 Garrison 12 | . . . . . 3 9 Intercept . | . . . . . . . Searches Triggered . | . . . . . . . Construction Impeded 6 | . . . . . 2 4 Haulers Reinforced 2 | . . . . . . 2 Active Scanning Responses . | . . . . . . . Cargo Convoy Interrupts . | . . . . . . . Stealth | -11 -10 -10 -10 -9 -8 -7 --------- Run | Scr Mat Min Exi Min Mat Fac Distress Signals 19 | . 4 1 . . 8 6 Communications Jammed . | . . . . . . . Distress Signals . | . . . . . . . Times Spotted 214 | . 25 13 . . 69 107 Peak Tracking Total 7 | . 5 4 . . 6 7 Tactical Retreats 9 | . 3 . . . 3 3 Traps | -11 -10 -10 -10 -9 -8 -7 ------- Run | Scr Mat Min Exi Min Mat Fac Traps Triggered 8 | . 3 . . . . 5 Indirectly . | . . . . . . . Trap Hack Attempts . | . . . . . . . Triggered . | . . . . . . . Disarmed . | . . . . . . . Reprogrammed . | . . . . . . . Reused . | . . . . . . . Traps Extracted . | . . . . . . . Installed . | . . . . . . . Triggered 1 | . . . . . . 1 Machines | -11 -10 -10 -10 -9 -8 -7 ---------- Run | Scr Mat Min Exi Min Mat Fac Machines Disabled 14 | . . 1 . . 3 10 Max in Single Turn 3 | . . 1 . . 1 3 Machines Sabotaged . | . . . . . . . Garrisons Compromised . | . . . . . . . Overloaded Fab Kills . | . . . . . . . Hacking | -11 -10 -10 -10 -9 -8 -7 --------- Run | Scr Mat Min Exi Min Mat Fac Machines Accessed 30 | . 6 . 1 . 7 16 Terminals 28 | . 6 . . . 6 16 Fabricators . | . . . . . . . Repair Stations 1 | . . . . . 1 . Recycling Units . | . . . . . . . Scanalyzers . | . . . . . . . Garrison Access . | . . . . . . . Total Hacks 76 | . 17 . 1 . 18 40 Successful 37 | . 12 . 1 . 8 16 Failed 39 | . 5 . . . 10 24 Catastrophic 7 | . . . . . 1 6 Database Lockouts . | . . . . . . . Manual 50 | . 9 . 1 . 16 24 Terminals 73 | . 17 . . . 16 40 Fabricators . | . . . . . . . Repair Stations 2 | . . . . . 2 . Recycling Units . | . . . . . . . Scanalyzers . | . . . . . . . Garrison Access . | . . . . . . . Terminal Hacks 20 | . 9 . 1 . 2 8 Robot Analysis 4 | . 2 . . . 1 1 Branch Access Points 2 | . 1 . . . . 1 Terminal Index 3 | . 1 . . . 1 1 Alert Level 1 | . . . . . . 1 Unreport Threat 4 | . 2 . . . . 2 Locate Traps 3 | . 2 . . . . 1 Hauler Manifests 1 | . . . . . . 1 Registered Components 1 | . 1 . . . . . EX-Prototype ID Bank 1 | . . . 1 . . . Fabricator Hacks . | . . . . . . . Repair Station Hacks 2 | . . . . . 2 . Scan Component 1 | . . . . . 1 . Repair 1 | . . . . . 1 . Recycling Unit Hacks . | . . . . . . . Scanalyzer . | . . . . . . . Garrison Access Hacks . | . . . . . . . Unauthorized Hacks 15 | . 3 . . . 4 8 Terminals 15 | . 3 . . . 4 8 Assimilate 4 | . . . . . 1 3 Botnet 10 | . 3 . . . 3 4 Operators 1 | . . . . . . 1 Fabricators . | . . . . . . . Repair Stations . | . . . . . . . Recycling Units . | . . . . . . . Scanalyzers . | . . . . . . . Garrison Access . | . . . . . . . Data Cores Recovered . | . . . . . . . Used . | . . . . . . . Hacking Detections 27 | . 5 . . . 6 16 Full Trace Events 5 | . 2 . . . 3 . Feedback Events . | . . . . . . . Feedback Blocked . | . . . . . . . Robot Schematics Acquired . | . . . . . . . Robots Built . | . . . . . . . Authchips . | . . . . . . . Time . | . . . . . . . Total Robot Build Rating . | . . . . . . . Part Schematics Acquired . | . . . . . . . Parts Built . | . . . . . . . Authchips . | . . . . . . . Time . | . . . . . . . Total Part Build Rating . | . . . . . . . Parts Repaired 1 | . . . . . 1 . Time 53 | . . . . . 53 . Parts Recycled . | . . . . . . . Recycled Matter . | . . . . . . . Retrieved Matter . | . . . . . . . Retrieved Components . | . . . . . . . Parts Scanalyzed . | . . . . . . . Part Schematics Acquired . | . . . . . . . Parts Damaged . | . . . . . . . Bothacking | -11 -10 -10 -10 -9 -8 -7 ------------ Run | Scr Mat Min Exi Min Mat Fac Used RIF Installer . | . . . . . . . Robots Hacked . | . . . . . . . Non-combat . | . . . . . . . Combat . | . . . . . . . Robot Hacks Applied . | . . . . . . . Relay Couplers Released . | . . . . . . . Fabnet Peak Effective % . | . . . . . . . Robots Rewired . | . . . . . . . Allies Hacked . | . . . . . . . Hacks Repelled . | . . . . . . . Allies | -11 -10 -10 -10 -9 -8 -7 -------- Run | Scr Mat Min Exi Min Mat Fac Total Allies 3 | . . . . . . 3 Largest Group 2 | . . . . . . 2 Highest-Rated Group 36 | . . . . . . 36 Highest-Rated Ally 26 | . . . . . . 26 Total Orders . | . . . . . . . Ally Attacks . | . . . . . . . Total Damage . | . . . . . . . Kills . | . . . . . . . Allies Corrupted . | . . . . . . . Allies Melted . | . . . . . . . Intel | -11 -10 -10 -10 -9 -8 -7 ------- Run | Scr Mat Min Exi Min Mat Fac Robot Analysis Total 4 | . 2 . . . 1 1 Derelict Logs Recovered 1 | . . . . 1 . . Drone Launches . | . . . . . . . Drone Recoveries . | . . . . . . . Exploration | -11 -10 -10 -10 -9 -8 -7 ------------- Run | Scr Mat Min Exi Min Mat Fac Turns Passed 10884 | 3 831 946 333 177 2894 5700 Spaces Moved 5288 | 1 496 546 208 110 1278 2649 Core . | . . . . . . . Treads 2920 | . 142 546 208 110 81 1833 Legs 1459 | . . . . . 1197 262 Wheels 909 | 1 354 . . . . 554 Hover . | . . . . . . . Flight . | . . . . . . . Fastest Speed 90 | 90 90 160 160 160 90 101 Average Speed 158 | 90 113 160 160 160 149 170 Slowest Speed 312 | 90 160 160 160 160 225 312 Overloaded Moves . | . . . . . . . Propulsion Burnouts . | . . . . . . . Robots Hopped . | . . . . . . . Cave-ins Triggered . | . . . . . . . Exploration Rate (%) 61 | 1 87 95 59 29 84 72 Regions Visited 6 Branch Regions 3 Pre-discovered Areas . | . . . . . . . Known Exits Taken 1 | . 1 . . . . . Unknown Exits Taken 5 | 1 . 1 1 1 1 . Scrap Searched 3 | . . 1 . 2 . . Spaces Dug 11 | . . . . . 1 10 Terrain Destroyed 306 | . . 100 . 12 33 161 Melee 11 | . . . . . 1 10 Projectile 8 | . . . . . . 8 AOE 285 | . . 100 . 12 32 141 Terrain Rammed . | . . . . . . . Walls Destroyed . | . . . . . . . Machines Disabled . | . . . . . . . Actions | -11 -10 -10 -10 -9 -8 -7 --------- Run | Scr Mat Min Exi Min Mat Fac Total 6960 | 2 655 600 208 110 1962 3423 Wait 985 | . 74 38 . . 429 444 Move 5282 | . 495 545 207 109 1277 2649 Hop . | . . . . . . . Pick Up 45 | . 5 . 1 . 19 20 Fast Attach 66 | . 12 . . . 25 29 Attach 35 | . 2 . . . 18 15 Detach 19 | . . . . . 5 14 Swap 50 | 2 . 1 . . 15 32 Drop 52 | . 10 . . . 9 33 Fire 387 | . 57 16 . 1 151 162 Melee 30 | . . . . . 7 23 Ram 1 | . . . . . . 1 Kick 8 | . . . . . 7 1 Crush . | . . . . . . . Escape Stasis . | . . . . . . . Rewire . | . . . . . . . Trap . | . . . . . . . Miscellaneous . | . . . . . . . Route ------- -11/Scrapyard -10/Materials (discovered 4 exits: [*Mat x2] / *Min x2) -10/Mines (discovered 3 exits: [*Mat x2] / *Exi) -10/Exiles -9/Mines -8/Materials (discovered 2 exits: *Fac / [*Sto]) -7/Factory (discovered 4 exits: [*Fac x2] / *Low x2) History --------- Turn | Location | Event 4 | -11/Scrapyard | Discovered new exit (range 0) 4 | -11/Scrapyard | Entered Materials 210 | -10/Materials | Discovered new exit (range 16) 313 | -10/Materials | Build established: Mutant 322 | -10/Materials | Discovered new exit (range 13) 330 | -10/Materials | Identified exit to Mines 657 | -10/Materials | Discovered new exit (range 8) 835 | -10/Materials | Entered Mines 838 | -10/Mines | YI-UF0 nonchalantly dropped a Grenade Launcher on the ground 884 | -10/Mines | Assembled infested the area 914 | -10/Mines | Core integrity fell below 50% 953 | -10/Mines | Destroyed 7 combat bots 1091 | -10/Mines | Discovered new exit (range 7) 1220 | -10/Mines | Deemed a non-threat by the Exiles lab entrance 1220 | -10/Mines | Discovered new exit (range 5) 1303 | -10/Mines | Found a hidden stash of uninstalled traps 1584 | -10/Mines | Discovered new exit (range 8) 1781 | -10/Mines | Entered Exiles 1820 | -10/Exiles | Met 8R-AWN 1849 | -10/Exiles | Met EX-HEX 1890 | -10/Exiles | Met EX-BIN 1913 | -10/Exiles | Aligned with FarCom system 1914 | -10/Exiles | Given EX-Vault access code 1951 | -10/Exiles | Opened EX-Vault 1962 | -10/Exiles | Found AWS/Thermal 1998 | -10/Exiles | Warned to stay clear of 0b10 Research branches 2043 | -10/Exiles | Met EX-DEC 2099 | -10/Exiles | Discovered new exit (range 10) 2114 | -10/Exiles | Left Exiles lab with AWS/Thermal 2114 | -10/Exiles | Entered Mines 2174 | -9/Mines | Learned Materials non-interactive machine intel 2270 | -9/Mines | Discovered new exit (range 13) 2291 | -9/Mines | Entered Materials 2291 | -8/Materials | Evolved 4 slots: Propulsion x1, Utility x2, Weapon x1 2292 | -8/Materials | Loaded intel: 37 non-interactive machine locations 2527 | -8/Materials | Lost 5 parts (1p2n2w) 3331 | -8/Materials | Garrison activated, responded to threat 3367 | -8/Materials | Lost 3 parts (1n1u1w) 3478 | -8/Materials | Core integrity fell below 50% 3571 | -8/Materials | Discovered new exit (range 7) 3751 | -8/Materials | Discovered new exit (range 15) 3953 | -8/Materials | Lost 4 parts (1p2n1u) 4394 | -8/Materials | Build established: Scavenger-Skirmisher 4682 | -8/Materials | Lost 3 parts (1p1n1w) 4844 | -8/Materials | Repaired Corrupted VSS Leg 4941 | -8/Materials | Build established: Scavenger-Mutant 5185 | -8/Materials | Entered Factory 5185 | -7/Factory | Evolved 2 slots: Utility x1, Weapon x1 5499 | -7/Factory | Build established: Scavenger-Skirmisher 5698 | -7/Factory | Garrison activated, responded to threat 5950 | -7/Factory | Discovered new exit (range 16) 6100 | -7/Factory | Build established: Skirmisher 6135 | -7/Factory | Identified exit to Lower Caves 7241 | -7/Factory | Garrison activated, responded to threat 8199 | -7/Factory | Build established: Tank 8224 | -7/Factory | Garrison activated, responded to threat 8748 | -7/Factory | Discovered new exit (range 13) 8785 | -7/Factory | First assault squad dispatched 8948 | -7/Factory | Lost 3 parts (1n2u) 9308 | -7/Factory | Build established: Scavenger-Tank 10518 | -7/Factory | Destroyed 12 combat bots 10519 | -7/Factory | Lost 4 parts (1n2u1w) 10883 | -7/Factory | Core integrity fell below 50% 10885 | -7/Factory | Self-destructed Last Messages --------------- 10862_ Critical hit (Burn: +37). 10862_ U-05 Engineer lays Concrete. 10870_ Com. Wheel destroyed. 10870_ U-05 Engineer lays Concrete. 10871_ L-41 Fighter destroyed. 10871_ Switching to secondary target: L-41 Fighter. 10871_ U-05 Engineer lays Concrete. 10873_ Gatling Laser destroyed. 10874_ U-05 Engineer lays Concrete. 10878_ Flak Gun destroyed. 10878_ U-05 Engineer lays Concrete. 10879_ Flak Gun destroyed. 10880_ U-05 Engineer lays Concrete. 10881_ Imp. Light Armor Plating destroyed. 10881_ Imp. Deuterium Engine destroyed. 10881_ Critical hit (Burn: +37). 10881_ Wheel destroyed. 10882_ U-05 Engineer lays Concrete. 10884_ Hvy. Particle Gun destroyed. 10884_ U-05 Engineer lays Concrete. Map ----- +----------------------------------------------------+ | ???????????????? = # ##= ! # | | ???????????????? =%| " ##""" !# | | ???????????????? ## # S ##"Y # | | ?????????????????? ????#### " ##""" # | | ???????????????????????# / ## # | | ????????????????????????#### !! ! # # | | ???????????????????????????# [! [## !!# | | ???????????????????????????# [ * ##! ! # | | ????????????######+########################## | | ??????????? ^ ^^ | | ??????????? ^ | | ??????????? ^ g ^ | | ??????????? ^ """ """ | | ??????????? w ^ """"" """"" ^ ^ | | ????????????############ """"" """"" ^ | | ???????????????????????# | | ???????????????????????#"" """ """ | | ???????????????????????#"T """"" """"" | | ???????????????????????#"" """"" """"" """"" " | | ???????????????????????# """"" " | | ????????????????##?##### """ " | | ????????????????? % #### ####+######## ^ ? | | ##+##???????????#;#;m#g; ## # ## """"??" | | ? ######???### ; ; # # """ """ !## """"??? | | ? ^ ##### ;;# # """ """ #? """???? | | ^ ^^ + %@# # """ """ #? ?????? | | """ # u% ll# # #? ????? | | """ # ggi # # / !#? ?????? | | # """ # # ########+#### #??? | | #^ ^ +u % # #??? | | # """ # # #??? | | # ^""" # """ # #??? | | # ! """ ##########;;;;### #??? | | #^!^^ # # ##??# #??? | | #!! """ # ###????# ###+####### | | #! """ # """" ######## #???? ] | | # """ # """" # #???? | | # # """" # ^ ^ ^ #???! = | | # + """" # """"" !!! #??? | | # ####### + ""T"" !!! #?? | | # #??????# [ # ^ !!! #??! | | # ???????# # !#? | | # ????????########## #? | | ????????????# ^^ """"""""" # | | ????????????# # | | ????????????# """"""""" + | | ????????????# # | | ????????????# ####+##+### | | ????????????# ###+################ #?????????? | | ????????????# # #?????????# #?????????? | +----------------------------------------------------+ Best States ------------- Heat Dissipation 70 Energy Generation 16 Energy Capacity 440 Matter Stores 300 Matter Capacity 300 Sight Range 16 Terrain Scan Density 10 Additional Mass Support 9 Armor Coverage 600 Evasion (%) 57 Targeting Accuracy 6 Recoil Reduction 3 Item Schematics ----------------- None Robot Schematics ------------------ None Fabricated ------------ Nothing Alien Tech Used ----------------- None Achievements -------------- None Challenges ------------ None Game ------ Seed MatterFissionTreads Manual? 0 Play Time 02:02:49 Cumulative 202.5 hours Start 2022.05.25 @ 14:04:43 End 2022.05.26 @ 14:00:21 Sessions 3 Manual Loads 0 Difficulty Rogue Special Mode None Game No. 87 Rogue 80 Adventurer 0 Explorer 7 Win Type - Total 1 Types 0/0/1/0/0/0/0/0/0 Lore% 62 Gallery% 59 Achievement% 49 Wizard Run 0 Options --------- ASCII 0 Keyboard 0 Movement Mouse Keybinds 0 Fullscreen 1 Font 16/Cog Map View 76x50 Tactical HUD 1 Map Filters NONE Filters NONE Steam 1 RUN: d4b8608b-ed3f-4531-bdf4-17c095756a11